{"text_format":"1","workbook":"xlsx","n_sheets":1,"sheets":["Pressupost Projecte Ab"],"not_rendered":{"charts":0,"images":2,"macros":1,"external_links":0,"defined_names":6,"comments":1,"pivot_tables":0},"unopened":[],"bounds":{"document_bytes":16777216,"sheet_cells":100000,"rows_first":2000,"rows_last":500,"rows_between":2000,"halvings":0,"cell_chars":16384,"cell_head_chars":4096},"cells_cut":0,"cells_raw":0,"read":"whole","date_system":"1900"}

{"sheet":"Pressupost Projecte Ab","index":0,"n_rows":65,"n_cols":6,"rows_kept":65,"cut":false,"hidden":false,"merged":[[2,1,3,5],[50,2,50,3]]}
[null,null,null,null,null,"Document bàsic 3"]
[null,null,null,null,null,"Àmbit temàtic \"A\": Creació i Consolidació"]
["Subvencions de l'Ajuntament de Barcelona per a","Modalitat \"b\": Consolidació: Consolidació empresarial i escalabilitat de les iniciatives d'Economia Social i Solidària per enfortir la seva viabilitat econòmica"]
["la promoció i reforç de l'economia social i solidària 2020"]
[null,null,null,null,null,"Cal omplir les cel·les en blanc i si escau afegir les files necessàries "]
[null,null,null,null,null,"Abans d'omplir, consultar anotacions a peu de pàgina "]
[null,null,null,null,null," "]
[null,null,null,null,null," "]
["DADES BÀSIQUES"]
["Nom de la persona jurídica",null,null,null,null,"  "]
["NIF de la persona jurídica"]
["Nom del projecte subvencionable"]
["Import total del projecte subvencionable"]
["Import imputable a la subvenció municipal"]
["% de l’import sol·licitat a la subvenció municipal a bescanviar en REC (Recurs Econòmic Ciutadà) "]
["Import de l'aportació / Cofinançament de l'entitat",{"$f":"B13-B14","v":0}]
["% de l'import sol·licitat respecte el total del projecte subvencionable",{"$f":"B14/B13","v":{"$error":"#DIV/0!"}}]
["Data inici del projecte subvencionat (dd/mm/aaaa)"]
["Data fi del projecte subvencionat (dd/mm/aaaa)"]
[]
["PREVISIÓ DE DESPESES DEL PROJECTE SUBVENCIONABLE"]
[]
[]
["Partides","Import total del projecte","Import imputable a la subvenció municipal","Import de l'aportació / Cofinançament de l'entitat"]
["D.1  Nòmines i seguretat social IRPF (règim general o règim d’autònoms) del personal propi  vinculat al projecte subvencionable",{"$f":"SUM(DespesesProjecte[[#This Row],[Import imputable a la subvenció municipal]],DespesesProjecte[[#This Row],[Import de l''aportació / Cofinançament de l''entitat]])","v":0},{"$f":"SUM(C26:C30)","v":0},{"$f":"SUM(D26:D30)","v":0}]
[]
[]
[]
[]
[]
["D.2 Rendiments anuals nets de l’empresari/a individual (veure 13.2 bases)",{"$f":"SUM(DespesesProjecte[[#This Row],[Import imputable a la subvenció municipal]],DespesesProjecte[[#This Row],[Import de l''aportació / Cofinançament de l''entitat]])","v":0},{"$f":"SUM(C32:C37)","v":0},{"$f":"SUM(D32:D37)","v":0}]
[]
[]
[]
[]
[]
[]
["TOTAL DE DESPESES DEL PERSONAL (Max 20% de l'import imputable a la subvenció municipal)",{"$f":"SUM(B25,B31)","v":0},{"$f":"SUM(C25,C31)","v":0},{"$f":"SUM(D25,D31)","v":0}]
["D.3  Treballs realitzats per professionals i empreses externes directament vinculades al projecte subvencionable",{"$f":"SUM(DespesesProjecte[[#This Row],[Import imputable a la subvenció municipal]],DespesesProjecte[[#This Row],[Import de l''aportació / Cofinançament de l''entitat]])","v":0},{"$f":"SUM(C40:C44)","v":0},{"$f":"SUM(D40:D44)","v":0}]
[]
[]
[]
[]
[]
["TOTAL D'ALTRES DESPESES DIRECTES ",{"$f":"SUM(B39)","v":0},{"$f":"SUM(C39)","v":0},0]
["TOTAL DESPESES DIRECTES (aquelles que s’identifiquen directament amb el projecte subvencionable)",{"$f":"SUM(B38,B45)","v":0},{"$f":"SUM(C38,C45)","v":0},0]
["TOTAL DE DESPESES PREVISTES",{"$f":"SUM(B46)","v":0},{"$f":"SUM(C46)","v":0},0]
[]
["Barcelona, "]
[]
["Segell de l'entitat ",null,"Signatura del President/a o persona que disposa de poders o autorització per fer-ho."]
[]
[]
["1.  La quantia de la subvenció atorgada no superarà el 80% de la despesa total del projecte a subvencionar. "]
["2.  L'import màxim de subvenció per a la modalitat \"b\" de l’àmbit temàtic de Creació i consolidació (Ab) és 10.000€."]
["3.  En el cas que la sol·licitud presentada sobrepassi l’import màxim, es considerarà com a import sol·licitat el màxim de l'establert a la convocatòria."]
["4.  Es limita amb un màxim del 20% l’import de la subvenció per a despeses de personal propi que participa de forma directa i degudament al projecte subvencionable."]
["5.  Només amb caràcter excepcional, els/les empresaris/ies individuals que no tinguin persones treballadores en plantilla"]
["     podran acreditar els seus treballs mitjançant una declaració responsable acompanyada de les declaracions IRPF (model 130) de l’exercici corrent."]
["     El preu/hora imputat al projecte subvencionat no podrà superar la quantitat resultant de dividir els rendiments anuals nets de l’empresari/a individual per 1800."]
["6. En cap cas es consideraran despeses subvencionables:"]
["- Els impostos indirectes quan siguin susceptibles de recuperació o compensació, ni els impostos sobre la renda."]
["- Les despeses d'inversió, incloses les adquisicions de béns mobles."]
["- Les despeses realitzades amb data anterior a l'inici del projecte i data posterior a la finalització del projecte."]
["- Altres despeses que s'indiquin a la convocatòria."]